bitfinex/quotes_SOLUSD_20250216
["timestamp","ask_amount","ask_price","bid_price","bid_amount"]
[1739731734786,87.5723,189.67,189.61,0.063]
[1739731734787,82.3,189.67,189.63,7.69356207]
[1739731735890,82.3,189.67,189.64,7.69356207]
[1739731738769,87.5725,189.67,189.64,7.69356207]
[1739731740092,82.3,189.67,189.64,7.69356207]
[1739731741601,82.33,189.67,189.64,7.69356207]
[1739731741890,87.6023,189.67,189.64,7.69356207]
[1739731742084,82.33,189.67,189.64,7.69356207]
[1739731744289,87.6023,189.67,189.64,7.69356207]
[1739731744596,82.33,189.67,189.64,7.69356207]
[1739731744768,82.33,189.67,189.65,7.69356207]
[1739731744968,0.03,189.67,189.66,7.69356207]
[1739731745488,0.03,189.67,189.66,26.3779106]
[1739731745689,0.03,189.67,189.66,34.5668106]
[1739731746883,0.03,189.74,189.7,20.0]
[1739731747094,0.03,189.74,189.73,7.69356207]
[1739731748195,0.03,189.74,189.73,12.96416207]
[1739731748395,0.03,189.74,189.73,26.3760106]
[1739731748972,0.03,189.74,189.73,34.5649106]
[1739731749587,0.03,189.74,189.73,35.35523668]
[1739731750770,0.03,189.74,189.73,34.5649106]
[1739731753607,0.03,189.74,189.73,29.2943106]
[1739731753980,0.03,189.74,189.73,7.69356207]
[1739731754495,0.03,189.74,189.71,7.69356207]
[1739731754691,0.03,189.74,189.7,7.69356207]
[1739731754900,7.72356207,189.74,189.69,83.5]
[1739731755213,7.69356207,189.73,189.66,7.69356207]
[1739731755386,9.61056207,189.72,189.65,7.69356207]
[1739731755584,7.69356207,189.71,189.65,7.69356207]
[1739731755901,5.2714,189.7,189.65,7.69356207]
[1739731756625,5.2714,189.7,189.65,12.00918185]
[1739731756914,5.2712,189.71,189.65,12.00918185]
[1739731758708,12.00918185,189.7,189.63,12.07218185]
[1739731759209,5.2712,189.71,189.66,12.00918185]
[1739731759593,12.00918185,189.7,189.64,12.00918185]
[1739731759913,12.00918185,189.69,189.63,0.063]
[1739731760102,12.00918185,189.68,189.63,0.063]
[1739731760307,12.00918185,189.69,189.63,12.07218185]
[1739731760607,17.28038185,189.71,189.65,12.00918185]
[1739731760991,17.28038185,189.71,189.64,12.00918185]
[1739731761616,5.2717,189.69,189.63,12.07218185]
[1739731761800,17.28088185,189.69,189.63,0.063]
[1739731762200,17.28088185,189.69,189.63,12.07218185]
[1739731762401,5.2717,189.69,189.64,12.00918185]
[1739731762898,5.2717,189.69,189.63,12.07218185]
[1739731763309,17.28088185,189.69,189.63,0.063]
[1739731763917,12.00918185,189.66,189.63,0.063]
[1739731764419,12.00918185,189.65,189.63,0.063]
[1739731765408,5.2731,189.64,189.63,0.063]
[1739731767317,17.28178185,189.66,189.63,0.063]
[1739731767622,99.58138185,189.68,189.63,0.063]
[1739731768530,82.3,189.68,189.64,12.00918185]
[1739731768900,87.572,189.68,189.64,12.00918185]
[1739731769423,82.3,189.68,189.64,12.00918185]
[1739731769725,5.2712,189.71,189.66,12.00918185]
[1739731770530,1.917,189.72,189.67,12.00918185]
[1739731770825,5.3004,189.74,189.69,12.00918185]
[1739731771124,5.3004,189.74,189.63,30.75733038]
[1739731771125,17.30958185,189.74,189.68,12.00918185]
[1739731773210,5.3004,189.74,189.68,12.00918185]
[1739731773409,5.3004,189.74,189.69,12.00918185]
[1739731774930,0.03,189.74,189.68,12.00918185]
[1739731776230,12.00918185,189.73,189.66,12.00918185]
[1739731776532,12.00918185,189.72,189.65,12.00918185]
[1739731776712,12.00918185,189.73,189.66,12.00918185]
[1739731777311,12.00918185,189.73,189.67,12.00918185]
[1739731777909,17.27978185,189.73,189.66,12.00918185]
[1739731778604,12.95568702,189.73,189.66,7.68508702]
[1739731778802,0.03,189.74,189.69,7.68508702]
[1739731778803,5.3003,189.74,189.69,7.68508702]
[1739731779910,0.03,189.74,189.69,7.68508702]
[1739731780529,0.03,189.74,189.7,7.68508702]
[1739731780729,0.03,189.74,189.72,12.00335352]
[1739731780907,0.03,189.74,189.71,12.00335352]
[1739731781233,0.03,189.74,189.69,12.00335352]
[1739731782442,0.03,189.74,189.71,12.00335352]
[1739731783434,0.03,189.74,189.7,12.00335352]
[1739731783738,0.03,189.74,189.68,12.00335352]
[1739731783923,12.03335352,189.74,189.67,12.06635352]
[1739731784539,5.2706,189.73,189.67,12.06635352]
[1739731784940,5.2706,189.73,189.68,12.00335352]
[1739731787633,17.27395352,189.73,189.67,0.063]
[1739731788642,12.00335352,189.72,189.67,0.063]
[1739731788822,30.45055352,189.73,189.67,0.063]
[1739731789642,17.27395352,189.73,189.67,0.063]
[1739731790137,82.3,189.72,189.67,0.063]
[1739731794045,82.3,189.72,189.68,12.00335352]
[1739731794245,82.3,189.72,189.7,12.00335352]
[1739731794424,82.3,189.72,189.71,12.00335352]
[1739731794628,0.03,189.73,189.71,12.00335352]
[1739731794852,0.03,189.73,189.72,17.27425352]
[1739731797233,0.03,189.73,189.72,12.00335352]
[1739731799338,0.03,189.73,189.68,13.1796]
[1739731799339,0.03,189.73,189.68,12.00335352]
[1739731800857,0.03,189.73,189.68,7.68347505]
[1739731801054,0.03,189.73,189.69,7.68347505]
[1739731801861,0.03,189.73,189.69,12.95517505]
[1739731802054,0.03,189.73,189.72,7.68347505]
[1739731802863,0.03,189.73,189.72,21.09532358]
[1739731803063,0.03,189.73,189.72,7.68347505]
[1739731803678,0.03,189.73,189.72,57.10012378]
[1739731804764,0.03,189.73,189.72,42.66883751]
[1739731807850,0.03,189.73,189.72,43.45915583]
[1739731811870,0.03,189.73,189.72,30.67579302]
[1739731812173,0.03,189.73,189.71,11.99304449]
[1739731812679,0.03,189.73,189.72,11.99304449]
[1739731814951,0.03,189.73,189.72,30.67579302]
[1739731815678,0.03,189.73,189.72,25.40489302]
[1739731816050,0.03,189.73,189.72,11.99304449]
[1739731816250,0.03,189.73,189.71,11.99304449]
[1739731816478,0.03,189.73,189.69,95.49304449]
[1739731816788,0.03,189.73,189.7,11.99304449]
[1739731819580,0.03,189.73,189.71,11.99304449]
[1739731819951,0.03,189.73,189.72,11.99304449]
[1739731821572,0.03,189.73,189.72,23.98608898]
[1739731821779,0.03,189.73,189.72,43.45919869]
[1739731822283,0.03,189.73,189.72,51.41969869]
[1739731822783,0.03,189.73,189.72,52.41969869]
[1739731823077,0.03,189.73,189.72,51.41969869]
[1739731823257,0.03,189.73,189.72,52.41969869]
[1739731823753,0.03,189.73,189.72,51.41969869]
[1739731824210,0.03,189.73,189.72,38.63629302]
[1739731824761,0.03,189.73,189.72,50.62933751]
[1739731825162,0.03,189.73,189.72,51.41962033]
[1739731825384,0.03,189.74,189.73,13.41184853]
[1739731825570,0.03,189.74,189.73,25.40489302]
[1739731825779,0.03,189.74,189.73,30.67549302]
[1739731827575,0.03,189.76,189.75,33.41184853]
[1739731827885,0.03,189.76,189.75,51.46503936]
[1739731831005,0.04,189.83,189.79,20.0]
[1739731831197,0.04,189.83,189.8,25.40489302]
[1739731831397,0.04,189.83,189.8,26.19496697]
[1739731831581,0.04,189.83,189.8,25.40489302]
[1739731832101,0.04,189.83,189.8,46.25332551]
[1739731832802,0.04,189.83,189.81,13.41184853]
[1739731833012,0.04,189.83,189.82,26.19480005]
[1739731833179,0.04,189.83,189.82,31.46290005]
[1739731835707,0.04,189.83,189.82,25.40489302]
[1739731835900,0.04,189.83,189.82,11.99304449]
[1739731836201,0.04,189.83,189.81,11.99304449]
[1739731836774,0.04,189.83,189.82,11.99304449]
[1739731837199,0.04,189.83,189.81,11.99304449]
[1739731837404,0.04,189.83,189.8,11.99304449]
[1739731837902,0.04,189.83,189.79,11.99304449]
[1739731838101,0.04,189.83,189.78,11.99304449]
[1739731838517,0.04,189.83,189.77,11.99304449]
[1739731838685,12.03304449,189.83,189.76,11.99304449]
[1739731839085,0.04,189.83,189.77,11.99304449]
[1739731839581,5.3078,189.83,189.77,11.99304449]
[1739731839990,5.3078,189.83,189.78,11.99304449]
[1739731841317,0.04,189.83,189.78,11.99304449]
[1739731841613,0.04,189.83,189.82,30.67299302]
[1739731842218,0.07,189.83,189.82,30.67299302]
[1739731844988,1.9559,189.92,189.86,20.0]
[1739731845189,1.9559,189.92,189.9,11.99304449]
[1739731847216,1.9559,189.92,189.91,11.99304449]
[1739731848000,1.9559,190.01,189.94,20.0]
[1739731848205,1.9559,190.01,189.99,11.99304449]
[1739731848989,1.9559,190.01,189.97,11.99304449]
[1739731849190,1.9559,190.01,189.98,11.99304449]
[1739731849401,1.9559,190.01,190.0,11.99304449]
[1739731849818,1.9559,190.01,189.99,11.99304449]
[1739731850730,1.9559,190.01,189.98,11.99304449]
[1739731851304,1.9559,190.01,189.97,11.99304449]
[1739731851628,1.9559,190.01,189.98,11.99304449]
[1739731852308,1.9559,190.01,189.99,11.99304449]
[1739731852613,0.03,190.02,190.0,11.99304449]
[1739731852820,0.03,190.02,190.01,11.99304449]
[1739731853217,0.03,190.02,189.98,11.99304449]
[1739731853733,0.03,190.02,189.99,11.99304449]
[1739731856203,0.03,190.02,189.98,11.99304449]
[1739731857034,0.03,190.02,189.99,11.99304449]
[1739731857436,0.03,190.02,190.0,11.99304449]
[1739731858222,0.03,190.02,189.98,11.99304449]
[1739731858423,0.03,190.02,189.96,11.99304449]
[1739731858740,11.99304449,190.01,189.94,11.99304449]
[1739731858914,12.02304449,190.02,189.95,11.99304449]
[1739731860236,12.02304449,190.02,189.96,11.99304449]
[1739731860539,18.42,190.01,189.95,11.99304449]
[1739731860733,30.41304449,190.01,189.94,11.99304449]
[1739731861844,30.41304449,190.01,189.92,11.99304449]
[1739731861845,11.99304449,189.99,189.92,11.99304449]
[1739731862146,1.9997,190.0,189.91,83.38]
[1739731862147,11.99304449,189.96,189.91,83.38]
[1739731862313,11.99304449,189.96,189.89,11.99304449]
[1739731862646,11.99304449,189.95,189.88,11.99304449]
[1739731862814,30.41494449,189.99,189.87,11.99304449]
[1739731862815,11.99304449,189.94,189.87,11.99304449]
[1739731863630,11.99304449,189.95,189.88,11.99304449]
[1739731864244,11.99304449,189.94,189.87,11.99304449]
[1739731864848,11.99304449,189.95,189.89,11.99304449]
[1739731865144,11.99304449,189.95,189.88,11.99304449]
[1739731866146,30.41984449,189.94,189.87,11.99304449]
[1739731866356,13.99274449,189.93,189.86,11.99304449]
[1739731866853,1.9997,189.93,189.88,11.99304449]
[1739731867236,1.9997,189.93,189.87,11.99304449]
[1739731868150,11.99304449,189.9,189.83,12.05604449]
[1739731868536,11.99304449,189.89,189.83,0.063]
[1739731868738,18.4287,189.92,189.83,0.063]
[1739731868739,11.99304449,189.87,189.83,0.063]
[1739731869265,11.99304449,189.85,189.83,0.063]
[1739731869439,2.0122,189.84,189.83,0.063]
[1739731870049,7.2797,189.84,189.83,0.063]
[1739731870729,19.27274449,189.84,189.83,0.063]
[1739731871451,11.99304449,189.81,189.77,0.063]
[1739731871952,11.99304449,189.82,189.77,0.063]
[1739731872138,5.2684,189.81,189.77,0.063]
[1739731872334,5.2681,189.82,189.77,0.063]
[1739731872535,7.28,189.84,189.78,11.99304449]
[1739731874057,19.27304449,189.84,189.77,12.05604449]
[1739731878169,11.99304449,189.79,189.77,0.063]
[1739731878468,11.99304449,189.78,189.77,0.063]
[1739731878672,11.99304449,189.81,189.77,0.063]
[1739731879540,17.26174449,189.8,189.77,0.063]
[1739731879975,11.99304449,189.78,189.77,0.063]
[1739731881572,17.26224449,189.78,189.77,0.063]
[1739731882767,5.2692,189.78,189.77,0.063]
[1739731883881,17.26224449,189.78,189.77,0.063]
[1739731887680,17.26224449,189.78,189.77,0.0001]
[1739731888955,20.0,189.75,189.67,7.1016]
[1739731889156,11.99304449,189.69,189.67,7.1016]
[1739731889372,11.99304449,189.7,189.67,7.1016]
[1739731889572,11.99304449,189.71,189.67,7.1016]
[1739731889781,17.26434449,189.71,189.67,7.1016]
[1739731890373,11.99304449,189.69,189.67,7.1016]
[1739731890583,11.99304449,189.7,189.67,7.1016]
[1739731891261,5.2713,189.71,189.7,1.73215551]
[1739731891478,17.26434449,189.71,189.7,1.73215551]
[1739731892989,17.26434449,189.71,189.7,1.79515551]
[1739731893492,19.25654449,189.71,189.7,1.79515551]
[1739731894774,5.2713,189.71,189.7,1.79515551]
[1739731895267,17.26364449,189.73,189.7,1.79515551]
[1739731896084,11.99304449,189.72,189.7,1.79515551]
[1739731896269,5.2706,189.73,189.7,1.79515551]
[1739731896270,11.99304449,189.71,189.7,1.79515551]
[1739731897761,17.26424449,189.71,189.7,1.79515551]
[1739731898069,17.26424449,189.71,189.7,5.551e-05]
[1739731898969,33.54469302,189.71,189.7,5.551e-05]
[1739731899180,34.54469302,189.71,189.7,5.551e-05]
[1739731899490,33.54469302,189.71,189.7,5.551e-05]
[1739731899662,32.54469302,189.71,189.7,5.551e-05]
[1739731900187,19.13284449,189.71,189.7,5.551e-05]
[1739731905993,20.0,189.68,189.63,0.063]
[1739731906294,11.99304449,189.64,189.63,0.063]
[1739731907088,82.3,189.67,189.63,0.063]
[1739731907089,11.99304449,189.66,189.63,0.063]
[1739731907796,94.29304449,189.67,189.63,0.063]
[1739731908095,17.26554449,189.66,189.63,0.063]
[1739731908494,11.99304449,189.65,189.63,0.063]
[1739731908703,17.26554449,189.66,189.63,0.063]
[1739731908997,11.99304449,189.64,189.63,0.063]
[1739731909496,82.3,189.63,189.61,0.063]
[1739731909686,11.99304449,189.62,189.61,0.063]
[1739731910380,5.2737,189.62,189.61,0.063]
[1739731915684,82.3,189.68,189.61,12.05604449]
[1739731915995,5.2723,189.67,189.62,11.99304449]
[1739731916197,5.2723,189.67,189.61,12.05604449]
[1739731916805,17.26534449,189.67,189.61,0.063]
[1739731917608,5.2723,189.67,189.61,12.05604449]
[1739731918098,5.2723,189.67,189.61,0.063]
[1739731918498,5.2723,189.67,189.61,12.05604449]
[1739731918673,17.26534449,189.67,189.61,0.063]
[1739731918878,11.99304449,189.66,189.61,0.063]
[1739731919986,5.2728,189.65,189.61,0.063]
[1739731920605,17.26584449,189.65,189.61,0.063]
[1739731920905,82.3,189.64,189.61,0.063]
[1739731921106,82.3,189.63,189.61,0.063]
[1739731921900,5.2737,189.62,189.61,0.063]
[1739731922779,17.26674449,189.62,189.61,0.063]
[1739731924605,5.2737,189.62,189.61,0.063]
[1739731928416,17.26674449,189.62,189.59,0.063]
[1739731928709,11.99304449,189.6,189.58,0.063]
[1739731928897,94.29304449,189.59,189.57,0.063]
[1739731929096,11.99304449,189.58,189.57,0.063]
[1739731929682,17.26784449,189.58,189.57,0.063]
[1739731930300,30.67969302,189.58,189.57,0.0001]
[1739731931291,17.26784449,189.58,189.57,0.0001]
[1739731931511,5.2748,189.58,189.57,0.0001]
[1739731932312,11.99304449,189.61,189.57,0.0001]
[1739731932513,5.2742,189.6,189.57,0.0001]
[1739731933310,17.26724449,189.6,189.57,0.0001]
[1739731933908,5.2742,189.6,189.57,0.0001]
[1739731934884,11.99304449,189.6,189.57,0.0001]
[1739731935511,5.2737,189.62,189.57,0.0001]
[1739731935805,11.99304449,189.59,189.57,0.0001]
[1739731936009,11.99304449,189.58,189.57,0.0001]
[1739731936987,17.26784449,189.58,189.57,0.0001]
[1739731937708,30.67969302,189.58,189.57,0.0001]
[1739731937986,31.67969302,189.58,189.57,0.0001]
[1739731938493,17.26784449,189.58,189.57,0.0001]
[1739731940516,5.2748,189.58,189.57,0.0001]
[1739731940915,5.2739,189.61,189.57,0.0001]
[1739731941631,13.93924449,189.63,189.57,0.0001]
[1739731941931,5.2737,189.62,189.57,0.0001]
[1739731944228,5.2737,189.62,189.55,11.99304449]
[1739731944531,5.2742,189.6,189.55,11.99304449]
[1739731945632,5.2742,189.6,189.56,11.99304449]
[1739731946114,5.2742,189.6,189.55,12.05604449]
[1739731947231,5.2742,189.6,189.56,11.99304449]
[1739731950116,17.26724449,189.6,189.55,0.063]
[1739731950515,94.29304449,189.59,189.55,0.063]
[1739731950733,11.99304449,189.58,189.55,0.063]
[1739731950944,11.99304449,189.57,189.55,0.063]
[1739731951618,82.3,189.56,189.55,0.063]
[1739731951813,11.99304449,189.57,189.55,0.063]
[1739731952140,18.4598,189.6,189.55,0.063]
[1739731952336,82.3,189.59,189.55,0.063]
[1739731952635,11.99304449,189.58,189.55,0.063]
[1739731952933,94.29304449,189.59,189.55,0.063]
[1739731954634,5.2748,189.58,189.55,0.063]
[1739731955030,17.26784449,189.58,189.55,0.063]
[1739731956311,82.3,189.57,189.55,0.063]
[1739731956521,94.29304449,189.57,189.55,0.063]
[1739731956717,11.99304449,189.56,189.55,0.063]
[1739731958441,17.26834449,189.56,189.55,0.063]
[1739731961345,17.26834449,189.56,189.51,0.026]
[1739731962444,11.99304449,189.55,189.51,0.026]
[1739731962641,11.99304449,189.54,189.51,0.026]
[1739731962831,18.4637,189.56,189.51,0.026]
[1739731962832,11.99304449,189.52,189.51,0.026]
[1739731965017,17.26944449,189.52,189.51,0.026]
[1739731966644,17.26944449,189.52,189.51,0.0001]
[1739731970748,5.2764,189.52,189.51,0.0001]
[1739731971245,5.3394,189.52,189.51,0.0001]
[1739731972348,17.33244449,189.52,189.51,0.0001]
[1739731975951,13.04296109,189.52,189.51,0.0001]
[1739731980959,20.0,189.49,189.44,0.063]
[1739731981158,7.70356109,189.45,189.44,0.063]
[1739731981534,7.70356109,189.46,189.44,0.063]
[1739731982638,5.2784,189.45,189.44,0.063]
[1739731983458,5.2776,189.48,189.44,0.063]
[1739731984385,5.2773,189.49,189.45,7.70356109]
[1739731984534,82.3,189.48,189.45,7.70356109]
[1739731984865,87.5776,189.48,189.44,7.76656109]
[1739731985740,87.5776,189.48,189.44,0.063]
[1739731986263,7.70356109,189.47,189.44,0.063]
[1739731986637,108.47516109,189.48,189.44,0.063]
[1739731988755,7.70356109,189.47,189.44,0.063]
[1739731988965,7.70356109,189.46,189.44,0.063]
[1739731989153,82.3,189.45,189.44,0.063]
[1739731989356,7.70356109,189.46,189.44,0.063]
[1739731989749,7.70356109,189.47,189.44,0.063]
[1739731989945,26.17516109,189.48,189.44,0.063]
[1739731990156,18.4716,189.48,189.44,0.063]
[1739731990658,26.17516109,189.48,189.44,0.063]
[1739731990963,7.70356109,189.47,189.44,0.063]
[1739731991354,20.0,189.45,189.44,0.063]
[1739731991541,27.70356109,189.45,189.44,0.0001]
[1739731993143,32.98196109,189.45,189.43,0.0001]
[1739731993346,7.70356109,189.44,189.43,0.0001]
[1739731994158,12.98226109,189.44,189.43,0.0001]
[1739731994753,5.2787,189.44,189.43,0.0001]
[1739731997772,12.98226109,189.44,189.43,0.0001]
[1739731998360,5.2787,189.44,189.43,0.0001]
[1739731999872,7.70356109,189.46,189.43,0.0001]
[1739731999873,5.2781,189.46,189.43,0.0001]
[1739732000471,12.98166109,189.46,189.43,0.0001]
[1739732000777,7.70356109,189.44,189.43,0.0001]
[1739732002375,12.98226109,189.44,189.43,0.0001]
[1739732006351,12.98226109,189.44,189.42,0.0001]
[1739732006665,90.00356109,189.43,189.42,0.0001]
[1739732008077,95.28246109,189.43,189.42,0.0001]
[1739732008373,87.5789,189.43,189.42,0.0001]
[1739732009884,5.3417,189.44,189.42,0.0001]
[1739732011980,7.70356109,189.43,189.42,0.0001]
[1739732013093,13.04526109,189.44,189.42,0.0001]
[1739732013296,7.70356109,189.43,189.42,0.0001]
[1739732014074,32.98246109,189.43,189.42,0.0001]
[1739732014279,12.98246109,189.43,189.42,0.0001]
[1739732016986,32.98246109,189.43,189.42,0.0001]
[1739732018180,25.2789,189.43,189.42,0.0001]
[1739732019087,32.98246109,189.43,189.42,0.0001]
[1739732020289,25.2789,189.43,189.42,0.0001]
[1739732020789,5.2789,189.43,189.42,0.0001]
[1739732021866,0.063,189.44,189.42,0.0001]
[1739732032690,5.3417,189.44,189.42,0.0001]
[1739732036774,0.063,189.44,189.42,0.0001]
[1739732044796,7.76656109,189.44,189.42,0.0001]
[1739732045295,7.70356109,189.43,189.42,0.0001]
[1739732046089,12.98246109,189.43,189.42,0.0001]
[1739732046604,15.00326109,189.43,189.42,0.0001]
[1739732046978,28.41510962,189.43,189.42,0.0001]
[1739732047879,29.41510962,189.43,189.42,0.0001]
[1739732048200,20.0,189.38,189.37,0.063]
[1739732048404,27.70356109,189.38,189.37,0.063]
[1739732049178,41.11540962,189.38,189.36,0.063]
[1739732049501,7.70356109,189.37,189.35,0.063]
[1739732049674,7.70356109,189.36,189.35,0.063]
[1739732050294,12.98446109,189.36,189.35,0.063]
[1739732053202,26.39630962,189.36,189.32,0.03]
[1739732053404,7.70356109,189.35,189.32,0.03]
[1739732055107,12.98446109,189.36,189.32,0.03]
[1739732055607,7.70356109,189.35,189.32,0.03]
[1739732055904,12.98476109,189.35,189.32,0.03]
[1739732056207,5.2812,189.35,189.33,7.70356109]
[1739732056887,5.2803,189.38,189.33,7.70356109]
[1739732057987,5.2803,189.38,189.32,7.73356109]
[1739732059504,5.2803,189.38,189.33,7.70356109]
[1739732059713,5.2803,189.38,189.34,7.76656109]
[1739732060810,5.2795,189.41,189.36,7.70356109]
[1739732061201,7.70356109,189.42,189.36,7.70356109]
[1739732062715,5.2795,189.41,189.35,7.70356109]
[1739732063292,12.98306109,189.41,189.34,7.76656109]
[1739732063693,5.2795,189.41,189.35,7.70356109]
[1739732064213,5.2795,189.41,189.36,7.70356109]
[1739732065922,5.2795,189.41,189.35,7.70356109]
[1739732066209,12.98306109,189.41,189.34,7.76656109]
[1739732066419,82.3,189.4,189.34,7.76656109]
[1739732067518,5.2801,189.39,189.34,7.76656109]
[1739732070217,5.2801,189.39,189.35,7.70356109]
[1739732072228,82.3,189.38,189.35,7.70356109]
[1739732072399,82.3,189.37,189.35,7.70356109]
[1739732075122,82.3,189.37,189.36,7.70356109]
[1739732075309,87.5806,189.37,189.35,7.70356109]
[1739732076107,87.5806,189.37,189.34,0.063]
[1739732076423,82.3,189.36,189.34,0.063]
[1739732077996,87.5811,189.36,189.34,7.76656109]
[1739732078801,87.5811,189.36,189.34,0.063]
[1739732079200,87.5811,189.36,189.34,7.76656109]
[1739732079401,82.3,189.36,189.35,7.70356109]
[1739732083100,82.3,189.36,189.35,7.73356109]
[1739732085235,82.3,189.36,189.35,0.03]
[1739732085538,0.063,189.39,189.35,7.73356109]
[1739732086031,5.3431,189.39,189.35,7.73356109]
[1739732087531,0.063,189.39,189.37,7.70356109]
[1739732087718,0.063,189.39,189.38,7.70356109]
[1739732088124,0.063,189.39,189.37,7.70356109]
[1739732097350,0.063,189.39,189.38,7.70356109]
[1739732101965,82.3,189.38,189.35,7.73356109]
[1739732102152,82.3,189.38,189.35,0.03]
[1739732103754,5.2806,189.37,189.35,0.03]
[1739732104736,82.3,189.36,189.35,0.03]
[1739732105827,87.5809,189.36,189.35,0.03]
[1739732107054,12.98446109,189.36,189.35,0.03]
[1739732109156,12.98446109,189.36,189.34,0.063]
[1739732109489,7.70356109,189.35,189.34,0.063]
[1739732109954,7.70356109,189.35,189.34,0.0001]
[1739732110260,20.0,189.33,189.32,0.0001]
[1739732110445,27.70356109,189.33,189.32,0.0001]
[1739732111130,25.2817,189.33,189.32,0.0001]
[1739732112758,5.2815,189.34,189.32,0.0001]
[1739732113137,5.2806,189.37,189.32,7.70366109]
[1739732114445,5.2806,189.37,189.32,0.0001]
[1739732115244,5.2806,189.37,189.32,7.70366109]
[1739732115456,5.2806,189.37,189.33,7.70356109]
[1739732115955,5.2806,189.37,189.32,7.70366109]
[1739732116652,5.3433,189.38,189.32,7.70366109]
[1739732116862,82.3,189.36,189.32,0.0001]
[1739732117167,7.70356109,189.34,189.32,0.0001]
[1739732117755,7.70356109,189.35,189.32,0.0001]
[1739732118157,20.0,189.33,189.32,0.0001]
[1739732118351,7.70356109,189.33,189.32,0.0001]
[1739732118960,32.98526109,189.33,189.32,0.0001]
[1739732119471,25.2817,189.33,189.32,0.0001]
[1739732119761,5.2817,189.33,189.32,0.0001]
[1739732120262,5.2812,189.35,189.32,0.0001]
[1739732120861,5.2806,189.37,189.32,0.0001]
[1739732121057,12.98416109,189.37,189.32,0.0001]
[1739732121563,5.2806,189.37,189.32,0.0001]
[1739732123393,7.70356109,189.36,189.32,0.0001]
[1739732123864,7.70356109,189.35,189.32,0.0001]
[1739732125143,5.2815,189.34,189.32,0.0001]
[1739732125643,82.3,189.33,189.32,0.0001]
[1739732125844,5.2815,189.34,189.32,0.0001]
[1739732131467,5.2809,189.36,189.32,0.0001]
[1739732131654,5.2809,189.36,189.33,7.70356109]
[1739732131655,82.3,189.35,189.33,7.70356109]
[1739732132060,82.3,189.35,189.32,7.70366109]
[1739732132558,87.5812,189.35,189.32,0.0001]
[1739732133889,82.3,189.35,189.34,7.70356109]
[1739732134376,82.363,189.35,189.33,7.70356109]
[1739732134968,82.363,189.35,189.34,7.70356109]
[1739732138470,82.363,189.35,189.33,7.70356109]
[1739732138774,82.363,189.35,189.32,0.0001]
[1739732138775,87.6442,189.35,189.32,0.0001]
[1739732139773,7.70356109,189.33,189.32,0.0001]
[1739732140676,12.98526109,189.33,189.32,0.0001]
[1739732143079,5.2817,189.33,189.32,0.0001]
[1739732144666,7.70356109,189.33,189.32,0.0001]
[1739732146475,28.35790962,189.33,189.32,0.0001]
[1739732146784,29.35790962,189.33,189.32,0.0001]
[1739732149860,20.0,189.29,189.25,0.03]
[1739732150187,7.70356109,189.26,189.25,0.03]
[1739732150385,7.70356109,189.26,189.24,0.03]
[1739732150557,27.70356109,189.25,189.24,0.03]
[1739732150762,27.70356109,189.25,189.14,9.58036109]
[1739732150967,7.70356109,189.21,189.14,9.58036109]
[1739732151169,82.3,189.2,189.14,9.58036109]
[1739732151375,82.3,189.19,189.14,9.58036109]
[1739732151577,5.2859,189.18,189.14,9.58036109]
[1739732152197,5.2859,189.18,189.13,7.5769]
[1739732152198,5.2859,189.18,189.13,15.28046109]
[1739732152498,5.2859,189.18,189.13,7.5769]
[1739732152795,12.98946109,189.18,189.13,7.5769]
[1739732154079,5.2859,189.18,189.13,7.5769]
[1739732154286,12.98946109,189.18,189.13,0.03]
[1739732154775,5.2859,189.18,189.15,7.70356109]
[1739732155098,5.2859,189.18,189.14,7.70356109]
[1739732155280,5.2859,189.18,189.13,7.73356109]
[1739732155592,82.3,189.17,189.13,7.73356109]